bitfinex/quotes_SOLUSD_20260304
["timestamp","ask_amount","ask_price","bid_price","bid_amount"]
[1772588970016,15.92277782,87.396,87.365,4.47898113]
[1772588970196,4.7649297,87.395,87.359,11.44700931]
[1772588970396,4.7649297,87.395,87.359,15.92599044]
[1772588970619,4.7649297,87.395,87.36,4.47898113]
[1772588970808,4.48060656,87.389,87.352,4.47898113]
[1772588971203,5.37249102,87.38,87.345,11.44885225]
[1772588971402,40.04759942,87.396,87.32,4.57898113]
[1772588971403,4.48060656,87.375,87.32,4.57898113]
[1772588971593,0.28432314,87.365,87.331,4.47898113]
[1772588971793,85.81628448,87.396,87.32,0.1]
[1772588971794,11.4450523,87.374,87.342,11.44924549]
[1772588972016,11.4450523,87.374,87.343,4.47898113]
[1772588972312,4.48060656,87.373,87.343,4.47898113]
[1772588972514,4.48060656,87.369,87.333,4.47898113]
[1772588972715,40.05768305,87.374,87.32,0.1]
[1772588972716,5.37249102,87.36,87.327,4.47898113]
[1772588972923,4.48060656,87.339,87.31,0.2]
[1772588973099,4.7649297,87.329,87.31,1e-08]
[1772588973826,4.48060656,87.327,87.31,1e-08]
[1772588974006,5.37249102,87.33,87.31,1e-08]
[1772588974316,5.37249102,87.35,87.311,4.47898113]
[1772588974621,4.48060656,87.349,87.311,4.47898113]
[1772588974797,5.37249102,87.35,87.311,4.47898113]
[1772588974798,0.28432314,87.346,87.311,4.47898113]
[1772588975203,4.48060656,87.347,87.311,4.47898113]
[1772588975406,0.14216157,87.357,87.311,4.47898113]
[1772588975619,4.48060656,87.369,87.331,4.47898113]
[1772588975825,15.92631384,87.369,87.331,4.47898113]
[1772588976005,11.44570728,87.369,87.332,15.92953762]
[1772588976203,0.28432314,87.368,87.333,4.47898113]
[1772588976520,4.48060656,87.374,87.34,9.85147215]
[1772588976724,5.37249102,87.37,87.34,4.47898113]
[1772588977521,4.48060656,87.374,87.34,9.85147215]
[1772588977902,4.48060656,87.374,87.34,4.47898113]
[1772588978108,4.48060656,87.372,87.34,4.47898113]
[1772588978402,4.48060656,87.372,87.338,11.44973825]
[1772588978925,4.48060656,87.372,87.339,4.47898113]
[1772588979221,4.48060656,87.359,87.327,11.45121211]
[1772588979423,0.28432314,87.367,87.341,4.47898113]
[1772588979604,4.7649297,87.367,87.332,4.47898113]
[1772588980221,0.28432314,87.365,87.332,15.92944197]
[1772588980806,0.28432314,87.365,87.333,4.47898113]
[1772588981003,0.28432314,87.369,87.333,4.47898113]
[1772588981329,4.48060656,87.376,87.34,5.37249102]
[1772588981527,0.28432314,87.375,87.341,4.47898113]
[1772588981707,4.48060656,87.374,87.341,4.47898113]
[1772588982303,4.48060656,87.364,87.32,5.37249102]
[1772588982510,0.14216157,87.369,87.331,4.47898113]
[1772588982511,0.28432314,87.367,87.331,4.47898113]
[1772588982716,0.14216157,87.365,87.331,4.47898113]
[1772588982923,4.62276813,87.365,87.331,4.47898113]
[1772588984429,4.62276813,87.365,87.333,4.47898113]
[1772588984630,11.44439739,87.379,87.341,4.47898113]
[1772588984838,0.28432314,87.378,87.341,4.47898113]
[1772588985330,4.48060656,87.378,87.332,11.45055649]
[1772588985633,4.48060656,87.369,87.33,9.85147215]
[1772588985814,4.48060656,87.369,87.331,4.47898113]
[1772588986412,4.48060656,87.367,87.333,4.47898113]
[1772588986816,11.44513282,87.374,87.333,4.47898113]
[1772588987014,11.44513282,87.374,87.341,4.47898113]
[1772588987232,11.44374256,87.384,87.351,4.47898113]
[1772588987733,4.48060656,87.383,87.351,4.47898113]
[1772588988140,4.15708247,87.355,87.304,4.46768477]
[1772588988317,177.37800968,87.384,87.312,4.46768477]
[1772588988318,11.44780373,87.353,87.312,4.46768477]
[1772588988636,5.39582863,87.35,87.321,4.46768477]
[1772588989031,5.39582863,87.35,87.31,1e-08]
[1772588989032,4.15708247,87.329,87.31,1e-08]
[1772588989824,4.44140561,87.339,87.31,1e-08]
[1772588990335,4.15708247,87.337,87.31,1e-08]
[1772588990631,4.15708247,87.329,87.31,1e-08]
[1772588991017,4.15708247,87.325,87.299,0.99648335]
[1772588991356,4.15708247,87.325,87.281,0.72521858]
[1772588991539,4.15708247,87.319,87.281,5.19290335]
[1772588991716,40.07419449,87.338,87.281,0.72521858]
[1772588991717,4.15708247,87.299,87.281,0.72521858]
[1772588992116,4.15708247,87.294,87.262,4.46768477]
[1772588992521,5.39582863,87.29,87.262,4.46768477]
[1772588992735,15.61275474,87.293,87.262,4.46768477]
[1772588993232,11.45567227,87.293,87.263,11.4596106]
[1772588993630,11.45500883,87.299,87.27,4.56768477]
[1772588993935,28.62836272,87.326,87.281,4.46768477]
[1772588994139,4.15708247,87.319,87.281,4.46768477]
[1772588994433,11.45291705,87.314,87.281,4.46768477]
[1772588994641,11.45291705,87.314,87.282,15.92480078]
[1772588994820,11.45291705,87.314,87.28,5.39582863]
[1772588994821,11.45291705,87.314,87.283,4.46768477]
[1772588995541,11.45291705,87.314,87.27,0.1]
[1772588995542,4.15708247,87.313,87.271,4.46768477]
[1772588995841,4.15708247,87.31,87.272,4.46768477]
[1772588996037,11.45291705,87.314,87.272,4.46768477]
[1772588996338,11.45291705,87.314,87.281,4.46768477]
[1772588996520,9.5529111,87.32,87.283,4.46768477]
[1772588996521,11.45226124,87.319,87.283,4.46768477]
[1772588996716,11.73527299,87.329,87.291,4.46768477]
[1772588997139,9.5529111,87.32,87.281,4.46768477]
[1772588997336,9.5529111,87.32,87.282,4.46768477]
[1772588997932,40.22048606,87.329,87.291,4.46768477]
[1772588997933,0.14216157,87.328,87.291,4.46768477]
[1772588998434,11.45033432,87.334,87.291,4.46768477]
[1772588998632,0.28432314,87.339,87.301,4.46768477]
[1772588998822,34.01960783,87.34,87.301,4.46768477]
[1772588999332,40.3580588,87.339,87.301,4.46768477]
[1772588999526,5.39582863,87.33,87.301,4.46768477]
[1772589000237,11.44963876,87.339,87.301,4.46768477]
[1772589000415,11.44891706,87.345,87.311,4.46768477]
[1772589000618,3.69383402,87.375,87.321,4.46768477]
[1772589000619,11.44715302,87.358,87.321,4.46768477]
[1772589000834,5.39582863,87.37,87.331,4.46768477]
[1772589001036,11.44570728,87.369,87.331,4.46768477]
[1772589001640,4.15708247,87.385,87.351,4.46768477]
[1772589001824,4.15708247,87.389,87.351,4.46768477]
[1772589002027,4.15708247,87.388,87.351,4.46768477]
[1772589002638,4.44140561,87.385,87.351,4.46768477]
[1772589003016,4.15708247,87.369,87.339,4.46768477]
[1772589003222,4.15708247,87.359,87.327,4.46768477]
[1772589003540,4.15708247,87.365,87.331,4.46768477]
[1772589004043,4.15708247,87.349,87.31,5.39582863]
[1772589004339,4.15708247,87.345,87.311,4.46768477]
[1772589004540,4.15708247,87.355,87.311,4.46768477]
[1772589004727,11.44767268,87.354,87.311,4.46768477]
[1772589005041,11.44767268,87.354,87.32,5.39582863]
[1772589005222,4.15708247,87.355,87.312,11.4531794]
[1772589005223,5.39582863,87.37,87.331,4.46768477]
[1772589005422,11.44439739,87.379,87.341,4.46768477]
[1772589005829,5.39582863,87.37,87.341,4.46768477]
[1772589006243,4.15708247,87.378,87.341,4.46768477]
[1772589006424,4.15708247,87.375,87.341,4.46768477]
[1772589006624,40.05997549,87.369,87.33,9.8635134]
[1772589006838,11.44570728,87.369,87.331,4.46768477]
[1772589007140,4.15708247,87.355,87.322,4.46768477]
[1772589007441,4.15708247,87.337,87.303,4.46768477]
[1772589007744,4.15708247,87.325,87.29,5.39582863]
[1772589008633,4.15708247,87.309,87.25,0.2687143]
[1772589008835,5.39582863,87.31,87.27,5.49582863]
[1772589008836,4.15708247,87.305,87.27,5.49582863]
[1772589009227,4.15708247,87.299,87.27,0.1]
[1772589010137,4.15708247,87.289,87.27,0.1]
[1772589010731,4.15708247,87.287,87.27,0.1]
[1772589011726,11.45573447,87.293,87.27,0.1]
[1772589011939,34.03282739,87.3,87.27,0.1]
[1772589011940,4.15708247,87.299,87.27,0.1]
[1772589012133,4.15708247,87.297,87.27,0.1]
[1772589012333,5.39582863,87.3,87.27,4.56768477]
[1772589012847,4.15708247,87.289,87.27,0.1]
[1772589015349,4.15708247,87.287,87.26,0.2]
[1772589015932,11.45567846,87.293,87.261,4.46768477]
[1772589016138,11.45567846,87.293,87.262,4.46768477]
[1772589016729,11.45344175,87.31,87.262,4.46768477]
[1772589017047,11.45344175,87.31,87.25,0.2687143]
[1772589017048,0.28432314,87.289,87.25,5.66454293]
[1772589017240,0.28432314,87.287,87.25,10.1322277]
[1772589018249,5.39582863,87.28,87.25,4.73639907]
[1772589018842,4.08365366,87.284,87.25,4.73639907]
[1772589019240,11.45698475,87.283,87.25,4.73639907]
[1772589020052,4.46540171,87.282,87.252,4.19149253]
[1772589020254,9.86123034,87.28,87.252,4.19149253]
[1772589020458,4.46540171,87.279,87.252,4.19149253]
[1772589021245,4.46540171,87.275,87.25,0.2687143]
[1772589022242,5.39582863,87.3,87.261,4.19149253]
[1772589022440,4.46540171,87.305,87.261,4.19149253]
[1772589022944,4.46540171,87.305,87.271,4.19149253]
[1772589023350,11.4542289,87.304,87.273,4.19149253]
[1772589023659,57.24850731,87.339,87.25,0.2687143]
[1772589023660,11.45235986,87.319,87.29,5.39582863]
[1772589023838,11.45235986,87.319,87.291,4.19149253]
[1772589025055,11.4515266,87.325,87.291,4.19149253]
[1772589025440,11.4515266,87.325,87.293,4.19149253]
[1772589025635,2.82573087,87.349,87.311,4.19149253]
[1772589025837,11.44820865,87.35,87.321,4.19149253]
[1772589026435,16.84403728,87.35,87.321,4.19149253]
[1772589027349,4.46540171,87.349,87.309,4.19149253]
[1772589027653,4.74972485,87.339,87.302,4.19149253]
[1772589027854,4.46540171,87.339,87.302,4.19149253]
[1772589028956,11.44976985,87.338,87.304,4.19149253]
[1772589030354,4.46540171,87.329,87.294,4.19149253]
[1772589030772,4.46540171,87.309,87.275,4.19149253]
[1772589030945,5.39582863,87.31,87.275,4.19149253]
[1772589030946,4.46540171,87.307,87.275,4.19149253]
[1772589031263,11.45370412,87.308,87.25,0.2687143]
[1772589031264,4.46540171,87.305,87.259,4.19149253]
[1772589031465,0.28432314,87.278,87.25,0.2687143]
[1772589031662,4.74972485,87.275,87.245,4.19149253]
[1772589031966,5.39582863,87.27,87.232,4.19149253]
[1772589032965,11.45816623,87.274,87.241,4.19149253]
[1772589033462,5.39582863,87.29,87.251,4.19149253]
[1772589033843,5.39582863,87.29,87.251,3.69149253]
[1772589035063,11.45619722,87.289,87.254,11.46079262]
[1772589035776,11.45619722,87.289,87.255,4.19149253]
[1772589036650,4.46540171,87.295,87.25,5.39582863]
[1772589036651,4.46540171,87.295,87.256,11.46052993]
[1772589036846,0.28432314,87.296,87.261,4.19149253]
[1772589037271,5.39582863,87.29,87.261,4.19149253]
[1772589037450,4.74972485,87.296,87.261,4.19149253]
[1772589038753,4.46540171,87.305,87.263,4.19149253]
[1772589038970,9.86123034,87.3,87.263,4.19149253]
[1772589039280,4.46540171,87.299,87.263,4.19149253]
[1772589039754,15.91953179,87.305,87.271,4.19149253]
[1772589040157,4.46540171,87.304,87.271,4.19149253]
[1772589040968,5.39582863,87.31,87.273,4.19149253]
[1772589040969,11.45353239,87.31,87.273,4.19149253]
[1772589041866,5.39582863,87.32,87.281,4.19149253]
[1772589042073,45.77814673,87.378,87.272,40.10450087]
[1772589042074,8.15923573,87.344,87.311,4.19149253]
[1772589042277,11.44911441,87.343,87.32,5.39582863]
[1772589042569,11.44911441,87.343,87.311,4.19149253]
[1772589042777,3.69383402,87.344,87.32,5.39582863]
[1772589042978,3.69383402,87.344,87.321,11.45199894]
[1772589043175,3.69383402,87.344,87.322,4.19149253]
[1772589043357,11.44659623,87.363,87.331,4.19149253]
[1772589043752,4.46540171,87.365,87.331,4.19149253]
[1772589044263,11.44636234,87.364,87.331,4.19149253]
[1772589044663,4.46540171,87.363,87.331,4.19149253]
[1772589045449,4.46540171,87.363,87.332,11.45055649]
[1772589046155,15.9120261,87.362,87.331,4.19149253]
[1772589046377,15.9120261,87.362,87.323,11.45173665]
[1772589046378,4.46540171,87.359,87.323,11.45173665]
[1772589046680,4.46540171,87.359,87.33,5.39582863]
[1772589047878,4.46540171,87.37,87.341,4.19149253]
[1772589048078,4.46540171,87.37,87.34,5.39582863]
[1772589048273,5.59582863,87.38,87.314,4.40511774]
[1772589048274,4.49756505,87.359,87.314,4.40511774]
[1772589048478,4.49756505,87.359,87.33,5.39582863]
[1772589048855,15.94327233,87.369,87.331,4.40511774]
[1772589049061,4.49756505,87.369,87.341,4.40511774]
[1772589049369,4.49756505,87.369,87.313,40.08566879]
[1772589049370,4.49756505,87.369,87.332,4.40511774]
[1772589050276,4.49756505,87.367,87.333,4.40511774]
[1772589050576,4.49756505,87.367,87.34,5.39422773]
[1772589051780,15.94366536,87.366,87.34,5.39422773]
[1772589053776,4.49756505,87.366,87.341,11.44937658]
[1772589053985,11.4447284,87.377,87.351,4.40511774]
[1772589054366,0.2,87.38,87.351,4.40511774]
[1772589054573,11.44439739,87.379,87.351,4.40511774]
[1772589054889,4.49756505,87.378,87.351,4.40511774]
[1772589056187,4.49756505,87.378,87.352,11.44793479]
[1772589056793,4.49756505,87.378,87.328,11.45108098]
[1772589056991,4.49756505,87.378,87.35,9.79934547]
[1772589058309,4.49756505,87.376,87.35,9.79934547]
[1772589058690,4.49756505,87.374,87.333,4.40511774]
[1772589059005,4.49756505,87.374,87.341,4.40511774]
[1772589059186,11.44439739,87.379,87.351,4.40511774]
[1772589059391,15.94196244,87.379,87.351,4.40511774]
[1772589059589,4.78188819,87.378,87.335,4.40511774]
[1772589059790,4.78188819,87.369,87.33,5.39422773]
[1772589060304,4.78188819,87.367,87.33,5.39422773]
[1772589060502,4.49756505,87.359,87.321,4.40511774]
[1772589060694,4.49756505,87.359,87.33,5.39422773]
[1772589061083,4.49756505,87.359,87.331,4.40511774]
[1772589061421,4.78188819,87.367,87.331,4.40511774]
[1772589061582,4.78188819,87.367,87.321,4.40511774]
[1772589062099,4.78188819,87.367,87.33,5.39422773]
[1772589062799,4.49756505,87.364,87.33,5.39422773]
[1772589063410,4.49756505,87.364,87.332,4.40511774]
[1772589063787,4.49756505,87.364,87.331,11.45068761]
[1772589063788,0.2,87.38,87.351,4.40511774]
[1772589063987,0.2,87.38,87.361,4.40511774]
[1772589064612,0.2,87.38,87.352,4.40511774]
[1772589064804,11.44465934,87.377,87.35,5.39422773]
[1772589065015,11.44465934,87.377,87.33,5.39422773]
[1772589065016,4.49756505,87.369,87.33,5.39422773]
[1772589065692,4.49756505,87.369,87.34,5.39422773]
[1772589065896,4.49756505,87.369,87.331,4.40511774]
[1772589066792,4.49756505,87.365,87.331,4.40511774]
[1772589066992,4.49756505,87.365,87.33,5.39422773]
[1772589067198,4.49756505,87.365,87.331,4.40511774]
[1772589067395,4.49756505,87.359,87.322,4.40511774]
[1772589067706,4.49756505,87.359,87.321,11.45199894]
[1772589067895,4.49756505,87.359,87.331,4.40511774]
[1772589068895,0.2,87.38,87.353,4.40511774]
[1772589069713,16.14185089,87.38,87.353,4.40511774]
[1772589070395,4.69756505,87.38,87.353,4.40511774]
[1772589070592,0.2,87.38,87.36,5.39422773]
[1772589070813,0.2,87.38,87.353,4.40511774]
[1772589070995,0.2,87.38,87.361,4.40511774]
[1772589072093,0.14216157,87.405,87.371,4.40511774]
[1772589072292,4.63972662,87.405,87.371,4.40511774]
[1772589072812,4.49756505,87.405,87.371,4.40511774]
[1772589072993,4.49756505,87.403,87.371,4.40511774]
[1772589073192,4.49756505,87.403,87.38,5.39422773]
[1772589074924,4.49756505,87.403,87.35,5.39422773]
[1772589074925,4.49756505,87.389,87.348,15.85357677]
[1772589075124,4.49756505,87.387,87.353,4.40511774]
[1772589075296,4.49756505,87.387,87.36,5.39422773]
[1772589076213,15.9398987,87.395,87.37,5.39422773]
[1772589076406,4.49756505,87.394,87.36,5.39422773]
[1772589076604,4.49756505,87.394,87.352,15.85305253]
[1772589077925,4.49756505,87.392,87.352,15.85305253]
[1772589078306,4.49756505,87.392,87.36,5.39422773]
[1772589079706,4.49756505,87.392,87.361,4.44549681]
[1772589079910,4.33295959,87.427,87.382,4.44549681]
[1772589080111,4.33295959,87.427,87.39,5.39422773]
[1772589080721,4.33295959,87.425,87.39,5.39422773]
[1772589080920,4.33295959,87.419,87.38,5.39422773]
[1772589081447,4.33295959,87.415,87.38,5.39422773]
[1772589081628,4.61728273,87.409,87.37,5.39422773]
[1772589081802,4.33295959,87.379,87.337,28.62460189]
[1772589082116,4.33295959,87.379,87.341,4.44549681]
[1772589082303,4.33295959,87.379,87.35,9.83972454]
[1772589083320,4.33295959,87.379,87.34,9.83972454]
[1772589083902,11.44452837,87.378,87.342,11.44924549]
[1772589084102,4.33295959,87.377,87.342,11.44924549]
[1772589085220,15.77774992,87.376,87.343,4.44549681]
[1772589085622,4.33295959,87.375,87.343,4.44549681]
[1772589086819,4.33295959,87.375,87.35,5.39422773]
[1772589087413,4.33295959,87.398,87.37,5.39422773]
[1772589087926,4.33295959,87.398,87.361,4.44549681]
[1772589088951,4.33295959,87.419,87.381,4.44549681]
[1772589089112,4.33295959,87.418,87.381,4.44549681]
[1772589089612,4.33295959,87.418,87.362,40.06318536]
[1772589089613,4.33295959,87.418,87.39,5.39422773]
[1772589089814,11.43785242,87.429,87.41,5.39422773]
[1772589090231,4.33295959,87.428,87.4,5.39422773]
[1772589090832,3.69383402,87.43,87.37,5.39422773]
[1772589090833,4.33295959,87.408,87.37,5.39422773]
[1772589091043,4.33295959,87.417,87.39,5.39422773]
[1772589091416,11.4393104,87.418,87.39,5.39422773]
[1772589091624,11.4393104,87.418,87.391,4.44549681]
[1772589092029,11.4386534,87.423,87.391,4.44549681]
[1772589092328,11.43730984,87.434,87.41,5.39422773]
[1772589092540,51.52,87.462,87.42,5.39422773]
[1772589092541,4.33295959,87.447,87.42,5.39422773]
[1772589092914,4.33295959,87.447,87.421,11.43889912]
[1772589093944,0.2,87.47,87.43,5.39422773]
[1772589093945,4.33295959,87.456,87.43,5.39422773]
[1772589095334,4.33295959,87.456,87.429,11.43781088]
[1772589095539,4.33295959,87.456,87.43,5.39422773]
[1772589096616,4.53295959,87.47,87.441,4.44549681]
[1772589096814,11.43262184,87.469,87.441,4.44549681]
[1772589097032,4.53295959,87.47,87.442,11.43615196]
[1772589097733,0.2,87.48,87.461,4.44549681]
[1772589098937,0.2,87.48,87.429,91.50244046]
[1772589098938,4.33295959,87.478,87.44,5.39422773]
[1772589099236,4.33295959,87.476,87.44,5.39422773]
[1772589099628,4.33295959,87.476,87.442,4.44549681]
[1772589101141,11.4315763,87.477,87.451,4.44549681]
[1772589101339,11.4315763,87.477,87.443,11.43602117]
[1772589101340,0.2,87.48,87.461,4.44549681]
[1772589101842,0.2,87.5,87.471,4.44549681]
[1772589102142,15.76166163,87.499,87.471,4.44549681]
[1772589102328,4.33295959,87.498,87.47,5.39422773]
[1772589102931,4.33295959,87.498,87.461,4.44549681]
[1772589103144,0.2,87.5,87.45,5.39422773]
[1772589103145,4.33295959,87.489,87.45,5.39422773]
[1772589103649,4.33295959,87.489,87.451,4.44549681]
[1772589104421,0.28432314,87.496,87.461,4.44549681]
[1772589104623,0.2,87.5,87.443,40.02607411]
[1772589104624,0.2,87.5,87.47,9.83972454]
[1772589104818,0.2,87.5,87.471,4.44549681]
[1772589105224,11.42870204,87.499,87.471,4.44549681]
[1772589105943,11.42870204,87.499,87.471,15.87776901]
[1772589106643,11.42870204,87.499,87.471,4.44549681]
[1772589107549,15.76166163,87.499,87.471,4.44549681]
[1772589107847,4.33295959,87.498,87.471,4.44549681]
[1772589108233,11.42896327,87.497,87.471,4.44549681]
[1772589108437,4.20068373,87.485,87.45,5.39422773]
[1772589108841,4.20068373,87.479,87.443,4.35611369]
[1772589109554,4.20068373,87.479,87.45,5.39422773]
[1772589109848,4.48500687,87.489,87.451,4.35611369]
[1772589110348,4.48500687,87.487,87.451,4.35611369]
[1772589111428,4.20068373,87.479,87.441,4.35611369]
[1772589112229,4.20068373,87.479,87.443,4.35611369]
[1772589112436,4.20068373,87.482,87.452,4.35611369]
[1772589114753,15.63173733,87.481,87.452,4.35611369]
[1772589115247,4.20068373,87.48,87.452,4.35611369]
[1772589115845,4.20068373,87.476,87.44,5.37957714]
[1772589116045,4.20068373,87.459,87.42,5.37957714]
[1772589116545,4.20068373,87.459,87.414,4.35611369]
[1772589116546,4.20068373,87.459,87.419,4.35611369]
[1772589116750,4.48500687,87.456,87.419,4.35611369]
[1772589118966,4.20068373,87.465,87.421,4.35611369]
[1772589119138,4.20068373,87.465,87.431,4.35611369]
[1772589119750,11.43387598,87.46,87.431,4.35611369]
[1772589120352,4.20068373,87.465,87.44,9.73569083]
[1772589120548,4.20068373,87.465,87.44,4.35611369]
[1772589120854,11.43144562,87.478,87.451,4.35611369]
[1772589121154,4.20068373,87.482,87.452,4.35611369]
[1772589122963,11.43025761,87.488,87.461,4.35611369]
[1772589123168,4.20068373,87.487,87.461,4.35611369]
[1772589123843,4.20068373,87.487,87.461,15.78968849]
[1772589124059,4.20068373,87.487,87.462,4.35611369]
[1772589124760,11.62859356,87.5,87.471,4.35611369]
[1772589125451,11.62859356,87.5,87.45,5.37957714]
[1772589125452,0.2,87.5,87.481,4.35611369]
[1772589125643,4.20068373,87.489,87.431,4.35611369]
[1772589125834,4.20068373,87.479,87.431,4.35611369]
[1772589126038,4.20068373,87.479,87.441,4.35611369]
[1772589126863,4.20068373,87.479,87.426,40.03385719]
[1772589126864,4.20068373,87.469,87.432,4.35611369]
[1772589127165,4.20068373,87.467,87.432,4.35611369]
[1772589127348,4.20068373,87.457,87.412,4.35611369]
[1772589127549,4.20068373,87.439,87.4,5.37957714]
[1772589127747,4.20068373,87.439,87.4,16.82113739]
[1772589127948,4.20068373,87.439,87.401,4.35611369]
[1772589128141,4.20068373,87.439,87.402,4.35611369]
[1772589128464,5.37957714,87.43,87.402,4.35611369]
[1772589128642,4.20068373,87.429,87.397,3.69383402]
[1772589128838,4.20068373,87.429,87.386,4.35611369]
[1772589129039,4.20068373,87.417,87.38,5.37957714]
[1772589129235,11.43929167,87.418,87.36,28.71699789]
[1772589129236,4.48500687,87.409,87.36,5.47957714]
[1772589129440,4.48500687,87.409,87.362,4.35611369]
[1772589129852,4.20068373,87.399,87.362,4.35611369]
[1772589132257,4.20068373,87.397,87.362,4.35611369]
[1772589132465,4.20068373,87.397,87.364,4.35611369]
[1772589133257,4.20068373,87.419,87.371,4.35611369]
[1772589133466,11.43929167,87.418,87.391,4.35611369]
[1772589133863,11.43929167,87.418,87.38,5.37957714]
[1772589133864,4.20068373,87.417,87.38,5.37957714]
[1772589134267,4.20068373,87.415,87.377,4.35611369]
[1772589134449,4.20068373,87.415,87.378,11.44452837]
[1772589134650,4.20068373,87.415,87.38,5.37957714]
[1772589134851,4.20068373,87.415,87.378,15.80064206]
[1772589135681,4.20068373,87.409,87.378,4.35611369]
[1772589135884,40.32276002,87.416,87.36,0.1]
[1772589135885,4.20068373,87.389,87.36,0.1]
[1772589136981,15.64390247,87.388,87.36,0.1]
[1772589137272,4.20068373,87.415,87.371,4.35611369]
[1772589137570,4.20068373,87.389,87.36,0.1]
[1772589138774,4.36591907,87.401,87.361,4.36053845]
[1772589139069,4.36591907,87.399,87.361,4.36053845]
[1772589139256,4.0675518,87.41,87.38,5.37957714]
[1772589139453,15.50797353,87.41,87.38,5.37957714]
[1772589139853,15.50797353,87.41,87.381,4.0871925]
[1772589140353,15.50797353,87.41,87.362,40.06318536]
[1772589140354,4.0675518,87.409,87.372,4.0871925]
[1772589140680,4.0675518,87.409,87.362,40.06318536]
[1772589140681,4.0675518,87.416,87.381,4.0871925]
[1772589141674,4.0675518,87.416,87.36,0.1]
[1772589141675,4.0675518,87.425,87.391,4.0871925]
[1772589141852,11.43850658,87.424,87.391,4.0871925]
[1772589142186,3.69383402,87.443,87.411,4.0871925]
[1772589142755,3.69383402,87.443,87.421,4.0871925]
[1772589143679,3.69383402,87.443,87.4,5.37957714]
[1772589143680,4.0675518,87.464,87.431,2.59265664]
[1772589144174,11.43340612,87.463,87.431,2.59265664]
[1772589144368,11.43340612,87.463,87.432,11.43745996]
[1772589144369,4.0675518,87.462,87.432,11.43745996]
[1772589144572,4.0675518,87.462,87.427,11.43808706]
[1772589145663,4.0675518,87.462,87.43,5.37957714]
[1772589145869,4.0675518,87.462,87.431,2.59265664]
[1772589146366,11.43366757,87.461,87.431,11.43759078]
[1772589146874,3.69383402,87.444,87.431,11.43759078]
[1772589147174,15.50121937,87.461,87.431,11.43759078]
[1772589147374,4.0675518,87.46,87.42,16.8185424]
[1772589147574,4.0675518,87.46,87.43,5.37957714]
[1772589148672,33.9610333,87.47,87.432,2.59265664]
[1772589148673,4.0675518,87.469,87.432,2.59265664]
[1772589148876,4.0675518,87.469,87.44,5.37957714]
[1772589150194,4.0675518,87.465,87.43,5.37957714]
[1772589150364,4.0675518,87.465,87.425,11.43824831]
[1772589150670,40.01463391,87.468,87.425,11.43824831]
[1772589150671,4.0675518,87.459,87.425,11.43824831]
[1772589151081,4.0675518,87.449,87.41,5.37957714]
[1772589152384,4.0675518,87.439,87.4,5.37957714]
[1772589152887,4.0675518,87.437,87.4,16.82118403]
[1772589153266,102.89947863,87.464,87.4,16.82118403]
[1772589153267,4.0675518,87.456,87.421,2.59265664]
[1772589153482,4.0675518,87.456,87.43,5.37957714]
[1772589153679,4.0675518,87.454,87.421,2.59265664]
[1772589155563,4.0675518,87.463,87.43,5.37957714]
[1772589156173,4.0675518,87.459,87.42,5.37957714]
[1772589156870,4.0675518,87.459,87.413,2.59265664]
[1772589156871,4.0675518,87.459,87.414,11.43981513]
[1772589157071,4.0675518,87.455,87.401,61.2]
[1772589157275,4.0675518,87.445,87.397,14.03469698]
[1772589157465,2.82962109,87.445,87.398,3.83058735]
[1772589157666,40.02561638,87.444,87.399,11.44177851]
[1772589157869,40.02561638,87.444,87.4,3.83058735]
[1772589158270,11.43589039,87.444,87.4,3.83058735]
[1772589159487,4.0675518,87.443,87.4,3.83058735]
[1772589159691,4.0675518,87.441,87.4,15.27210461]
[1772589160390,4.0675518,87.441,87.4,11.44151726]
[1772589160597,4.0675518,87.441,87.395,11.44218997]
[1772589161087,4.0675518,87.441,87.396,3.83058735]
[1772589161400,4.0675518,87.425,87.371,3.83058735]
[1772589161705,4.0675518,87.413,87.362,3.83058735]
[1772589162893,4.0675518,87.411,87.364,3.83058735]
[1772589163273,4.0675518,87.411,87.363,40.06272677]
[1772589163575,4.0675518,87.411,87.363,43.89331412]
[1772589164589,4.0675518,87.411,87.364,3.83058735]
[1772589165892,4.0675518,87.409,87.366,3.83058735]
[1772589166295,4.0675518,87.405,87.36,11.54677957]
[1772589166878,4.0675518,87.405,87.36,15.37736692]
[1772589167193,4.0675518,87.405,87.361,3.83058735]
[1772589167385,45.73752954,87.456,87.361,3.83058735]
[1772589167386,4.0675518,87.413,87.361,3.83058735]
[1772589167771,4.0675518,87.413,87.365,3.83058735]
[1772589167972,15.50758478,87.413,87.365,3.83058735]
[1772589169500,4.1421674,87.423,87.373,3.83058735]
[1772589169705,4.1421674,87.423,87.374,3.83058735]
[1772589169888,4.1421674,87.423,87.376,3.83058735]
[1772589170202,4.1421674,87.423,87.382,3.83058735]
[1772589171002,4.1421674,87.442,87.382,3.83058735]
[1772589171200,4.1421674,87.45,87.392,3.83058735]
[1772589171403,4.1421674,87.443,87.392,3.83058735]
[1772589171987,4.1421674,87.443,87.394,4.11491049]
[1772589172301,4.1421674,87.443,87.397,4.11491049]
[1772589172492,45.70242409,87.523,87.397,4.11491049]
[1772589172493,4.1421674,87.464,87.397,4.11491049]